fUST/lending_fUST_20250617
["ID","MTS","AMOUNT","RATE_DAILY","PERIOD"]
[366276770,1750170651900,-1040.59,0.00024164,6]
[366276772,1750170651909,-1917.42,0.00024164,2]
[366276774,1750170651919,-460.0,0.00024164,6]
[366276776,1750170651928,-1174.45,0.00024164,6]
[366276778,1750170651938,-460.0,0.00024164,6]
[366276780,1750170651947,-151.0,0.00024164,7]
[366276782,1750170651956,-1333.41,0.00024164,6]
[366276784,1750170651965,-460.0,0.00024164,6]
[366276786,1750170651974,-1145.24,0.00024164,6]
[366276787,1750170651983,-460.0,0.00024164,6]
[366276789,1750170651992,-460.0,0.00024164,6]
[366276791,1750170652001,-2132.46,0.00024164,6]
[366276793,1750170652011,-803.49,0.00024164,6]
[366276794,1750170652020,-460.0,0.00024164,6]
[366276795,1750170652029,-465.77,0.00024164,6]
[366276796,1750170652039,-832.17,0.00024164,6]
[366276797,1750170652048,-643.51,0.00024164,6]
[366276798,1750170652058,-460.0,0.00024164,6]
[366276799,1750170652067,-501.88,0.00024164,6]
[366276800,1750170652076,-151.0,0.00024164,7]
[366276801,1750170652085,-151.0,0.00024164,7]
[366276802,1750170652094,-460.0,0.00024164,6]
[366276803,1750170652104,-5232.99,0.00024164,6]
[366276804,1750170652113,-460.0,0.00024164,6]
[366276805,1750170652122,-460.0,0.00024164,6]
[366276806,1750170652132,-460.0,0.00024164,6]
[366276807,1750170652141,-5089.93411841,0.00024164,6]
[366276830,1750170652452,-2388.66588159,0.00024164,6]
[366276832,1750170652461,-1240.76,0.00024164,6]
[366276834,1750170652471,-430.0,0.00024164,6]
[366276836,1750170652480,-151.0,0.00024164,7]
[366276848,1750170652595,-8502.49,0.00024164,6]
[366276850,1750170652606,-269.34125282,0.00024164,6]
[366276852,1750170652616,-460.0,0.00024164,6]
[366276854,1750170652626,-460.0,0.00024164,6]
[366276856,1750170652635,-182.64296,0.00024164,7]
[366276858,1750170652645,-6599.11,0.00024164,6]
[366276860,1750170652655,-460.0,0.00024164,6]
[366276861,1750170652664,-461.97,0.00024164,6]
[366276863,1750170652675,-460.0,0.00024164,6]
[366276865,1750170652684,-786.24,0.00024164,6]
[366276867,1750170652694,-1099.54,0.00024164,6]
[366276869,1750170652703,-1622.68,0.00024164,6]
[366276871,1750170652714,-2000.62,0.00024164,6]
[366276873,1750170652723,-317.86166329,0.00024164,6]
[366276875,1750170652733,-151.0,0.00024164,7]
[366276877,1750170652742,-151.0,0.00024164,7]
[366276879,1750170652752,-460.0,0.00024164,6]
[366276881,1750170652762,-606.83,0.00024164,6]
[366276883,1750170652771,-865.2,0.00024164,6]
[366276885,1750170652781,-460.0,0.00024164,6]
[366276887,1750170652791,-743.98,0.00024164,6]
[366276889,1750170652800,-2502.73,0.00024164,6]
[366276891,1750170652812,-460.0,0.00024164,6]
[366276893,1750170652827,-460.0,0.00024164,6]
[366276895,1750170652837,-294.425277,0.00024164,7]
[366276896,1750170652847,-1000.96,0.00024164,6]
[366276898,1750170652859,-2971.19,0.00024164,6]
[366276900,1750170652869,-460.0,0.00024164,6]
[366276902,1750170652879,-2366.14,0.00024164,6]
[366276904,1750170652890,-1659.82,0.00024164,6]
[366276906,1750170652899,-460.0,0.00024164,6]
[366276908,1750170652910,-212.564783,0.00024164,7]
[366276909,1750170652920,-460.0,0.00024164,6]
[366276911,1750170652931,-212.564783,0.00024164,7]
[366276912,1750170652941,-460.0,0.00024164,6]
[366276914,1750170652951,-329.40078564,0.00024164,6]
[366276916,1750170652961,-151.0,0.00024164,7]
[366276918,1750170652971,-153.896652,0.00024164,7]
[366276920,1750170652982,-5996.27,0.00024164,6]
[366276922,1750170652991,-460.0,0.00024164,6]
[366276924,1750170653000,-790.96,0.00024164,6]
[366276926,1750170653013,-370.0,0.00024164,6]
[366276928,1750170653023,-913.6,0.00024164,6]
[366276929,1750170653033,-460.0,0.00024164,6]
[366276931,1750170653042,-520.76,0.00024164,6]
[366276933,1750170653051,-460.0,0.00024164,6]
[366276935,1750170653061,-460.0,0.00024164,6]
[366276937,1750170653071,-3158.59,0.00024164,6]
[366276939,1750170653080,-460.0,0.00024164,6]
[366276941,1750170653090,-460.0,0.00024164,6]
[366276943,1750170653099,-1186.41,0.00024164,6]
[366276945,1750170653109,-460.0,0.00024164,6]
[366276947,1750170653119,-202.168273,0.00024164,7]
[366276948,1750170653129,-1367.69,0.00024164,6]
[366276950,1750170653139,-460.0,0.00024164,6]
[366276952,1750170653149,-460.0,0.00024164,6]
[366276954,1750170653159,-1593.25331687,0.00024164,6]
[366276982,1750170653446,-219.3746784,0.00023136,2]
[366276984,1750170653456,-460.0,0.00024109,6]
[366276986,1750170653466,-460.0,0.00024109,6]
[366276988,1750170653476,-460.0,0.00024109,6]
[366276990,1750170653486,-240.6253216,0.00024136,6]
[366276992,1750170653498,-219.3746784,0.00024136,6]
[366276994,1750170653508,-210.6253216,0.00024136,6]
[366276996,1750170653523,-249.3746784,0.00024136,6]
[366276998,1750170653532,-460.0,0.00024136,6]
[366277000,1750170653542,-460.0,0.00024136,6]
[366277002,1750170653552,-1100.09668313,0.00024164,6]
[366277004,1750170653563,-202.168273,0.00024164,7]
[366277006,1750170653576,-355.66098045,0.00024164,6]
[366277018,1750170653847,-0.00567757,0.00024164,6]
[366277019,1750170653865,-104.33334198,0.00024164,6]
[366277020,1750170653875,-332.55719936,0.00024164,6]
[366277021,1750170653886,-122.58945866,0.00024164,6]
[366277022,1750170653898,-984.84,0.00024164,6]
[366277023,1750170654010,150.0,0.00017278,2]
[366277024,1750170654085,223.96,0.00018101,2]
[366277025,1750170654120,335.94,0.00018924,2]
[366277026,1750170654148,-1989.4766109,0.00021779,2]
[366277027,1750170654160,-3010.5233891,0.00021779,2]
[366277028,1750170654169,-469.87054134,0.00024164,6]
[366277029,1750170654179,-460.0,0.00024164,6]
[366277030,1750170654189,-595.02,0.00024164,6]
[366277031,1750170654198,-452.99190551,0.00024164,6]
[366277032,1750170654207,-2030.29,0.00024164,6]
[366277033,1750170654217,-460.0,0.00024164,6]
[366277034,1750170654226,-533.05496491,0.00024164,6]
[366277035,1750170654236,-460.0,0.00024164,6]
[366277036,1750170654245,-460.0,0.00024164,6]
[366277038,1750170654263,-1039.95,0.00024164,6]
[366277041,1750170654283,-460.0,0.00024164,6]
[366277044,1750170654303,-460.0,0.00024164,6]
[366277047,1750170654324,-671.88,0.00024164,6]
[366277051,1750170654347,-460.0,0.00024164,6]
[366277053,1750170654365,-151.0,0.00024164,7]
[366277057,1750170654386,-1594.92,0.00024164,6]
[366277059,1750170654402,-7374.14,0.00024164,6]
[366277062,1750170654420,-1949.63,0.00024164,6]
[366277065,1750170654442,-858.85,0.00024164,6]
[366277069,1750170654466,-460.0,0.00024164,6]
[366277071,1750170654479,-1093.65,0.00024164,6]
[366277074,1750170654499,-524.66593378,0.00024164,6]
[366277077,1750170654516,-460.0,0.00024164,6]
[366277080,1750170654536,-915.3,0.00024164,6]
[366277082,1750170654550,-460.0,0.00024164,6]
[366277085,1750170654569,-904.51,0.00024164,6]
[366277088,1750170654585,-460.0,0.00024164,6]
[366277091,1750170654603,-460.0,0.00024164,6]
[366277094,1750170654621,-460.0,0.00024164,6]
[366277096,1750170654638,-460.0,0.00024164,6]
[366277099,1750170654656,-609.22,0.00024164,6]
[366277102,1750170654675,-5776.56,0.00024164,6]
[366277105,1750170654692,-460.0,0.00024164,6]
[366277107,1750170654711,-460.0,0.00024164,6]
[366277110,1750170654729,-312.18625728,0.00024164,6]
[366277113,1750170654748,-548.56,0.00024164,6]
[366277116,1750170654765,-1266.57,0.00024164,2]
[366277119,1750170654784,-460.0,0.00024164,6]
[366277121,1750170654801,-460.0,0.00024164,6]
[366277124,1750170654821,-445.78409177,0.00024164,6]
[366277127,1750170654839,-5098.43,0.00024164,6]
[366277130,1750170654858,-169.209814,0.00024164,7]
[366277132,1750170654885,-460.0,0.00024164,6]
[366277135,1750170654902,-250.35656205,0.00024164,6]
[366277138,1750170654920,-169.209814,0.00024164,7]
[366277140,1750170654932,-460.0,0.00024164,6]
[366277142,1750170654943,-460.0,0.00024164,6]
[366277144,1750170654953,-460.0,0.00024164,6]
[366277146,1750170654962,-460.0,0.00024164,6]
[366277148,1750170654972,-206.0,0.0002418,2]
[366277150,1750170654983,-560.7576648,0.00024191,6]
[366277152,1750170654992,-460.0,0.00024191,6]
[366277154,1750170655002,-460.0,0.00024191,6]
[366277156,1750170655011,-460.0,0.00024191,6]
[366277158,1750170655021,-460.0,0.00024191,6]
[366277160,1750170655031,-460.0,0.00024191,6]
[366277162,1750170655041,-460.0,0.00024191,6]
[366277187,1750170655269,-460.0,0.00024191,6]
[366277191,1750170655297,-582.10853998,0.00024191,6]
[366277193,1750170655307,-460.0,0.00024191,6]
[366277195,1750170655317,-460.0,0.00024191,6]
[366277197,1750170655327,-460.0,0.00024191,6]
[366277199,1750170655336,-460.0,0.00024191,6]
[366277201,1750170655346,-460.0,0.00024191,6]
[366277203,1750170655355,-308.77521631,0.00024191,6]
[366277205,1750170655364,-460.0,0.00024191,6]
[366277207,1750170655375,-460.0,0.00024191,6]
[366277209,1750170655384,-460.0,0.00024191,6]
[366277211,1750170655394,-460.0,0.00024191,6]
[366277213,1750170655404,-460.0,0.00024191,6]
[366277215,1750170655413,-372.05536132,0.00024191,6]
[366277217,1750170655423,-151.0,0.00024191,7]
[366277219,1750170655432,-460.0,0.00024191,6]
[366277221,1750170655441,-460.0,0.00024191,6]
[366277223,1750170655451,-271.30892764,0.00024191,6]
[366277227,1750170655481,172.74383123,0.00019746,2]
[366277252,1750170655723,-275.16616877,0.00019746,2]
[366277254,1750170655734,-559.89,0.00020569,2]
[366277256,1750170655744,-671.87,0.00021392,2]
[366277258,1750170655754,-783.85,0.00022215,2]
[366277260,1750170655763,-895.83,0.00023037,2]
[366277262,1750170655773,-460.0,0.00024109,6]
[366277264,1750170655782,-460.0,0.00024109,6]
[366277266,1750170655792,-460.0,0.00024136,6]
[366277268,1750170655802,-500.2,0.00024164,6]
[366277270,1750170655815,-169.209814,0.00024164,7]
[366277272,1750170655824,-188.69107236,0.00024191,6]
[366277274,1750170655834,-460.0,0.00024191,6]
[366277276,1750170655844,-460.0,0.00024191,6]
[366277278,1750170655854,-264.18920982,0.00024191,6]
[366277280,1750170655866,-195.81079018,0.00024191,6]
[366277282,1750170655875,-460.0,0.00024191,6]
[366277284,1750170655884,-151.0,0.00024191,7]
[366277286,1750170655895,-152.922554,0.00024191,7]
[366277288,1750170655905,-420.0,0.00024191,6]
[366277290,1750170655914,-151.0,0.00024191,7]
[366277292,1750170655923,-460.0,0.00024191,6]
[366277294,1750170655933,-460.0,0.00024191,6]
[366277296,1750170655943,-460.0,0.00024191,6]
[366277298,1750170655952,-460.0,0.00024191,6]
[366277300,1750170655961,-460.0,0.00024191,6]
[366277302,1750170655970,-551.97,0.00024191,6]
[366277304,1750170655980,-151.0,0.00024191,7]
[366277306,1750170655989,-460.0,0.00024191,6]
[366277308,1750170655998,-549.97,0.00024191,6]
[366277310,1750170656007,-460.0,0.00024191,6]
[366277312,1750170656017,-460.0,0.00024191,6]
[366277314,1750170656026,-460.0,0.00024191,6]
[366277316,1750170656036,-460.0,0.00024191,6]
[366277318,1750170656045,-460.0,0.00024191,6]
[366277320,1750170656054,-251.84537788,0.00024191,6]
[366277322,1750170656063,-460.0,0.00024191,6]
[366277324,1750170656073,-400.0,0.00024191,6]
[366277326,1750170656083,-460.0,0.00024191,6]
[366277328,1750170656092,-460.0,0.00024191,6]
[366277330,1750170656101,-460.0,0.00024191,6]
[366277332,1750170656111,-460.0,0.00024191,6]
[366277334,1750170656121,-460.0,0.00024191,6]
[366277336,1750170656130,-444.35704521,0.00024191,6]
[366277338,1750170656139,-151.0,0.00024191,7]
[366277340,1750170656149,-460.0,0.00024191,6]
[366277342,1750170656158,-460.0,0.00024191,6]
[366277344,1750170656168,-460.0,0.00024191,6]
[366277346,1750170656178,-460.0,0.00024191,6]
[366277348,1750170656187,-460.0,0.00024191,6]
[366277350,1750170656197,-212.32633216,0.00024191,6]
[366277352,1750170656207,-460.0,0.00024191,6]
[366277354,1750170656217,-460.0,0.00024191,6]
[366277356,1750170656226,-460.0,0.00024191,6]
[366277358,1750170656235,-239.52489381,0.00024191,6]
[366277360,1750170656245,-460.0,0.00024191,6]
[366277361,1750170656255,-460.0,0.00024191,6]
[366277363,1750170656264,-460.0,0.00024191,6]
[366277365,1750170656274,-498.05369601,0.00024191,6]
[366277367,1750170656284,-460.0,0.00024191,6]
[366277369,1750170656293,-460.0,0.00024191,6]
[366277371,1750170656303,-152.506112,0.00024191,7]
[366277373,1750170656313,-460.0,0.00024191,6]
[366277375,1750170656322,-460.0,0.00024191,6]
[366277377,1750170656332,-460.0,0.00024191,6]
[366277379,1750170656342,-460.0,0.00024191,6]
[366277381,1750170656353,-460.0,0.00024191,6]
[366277383,1750170656364,-531.93,0.00024191,6]
[366277385,1750170656374,-460.0,0.00024191,6]
[366277387,1750170656384,-460.0,0.00024191,6]
[366277389,1750170656394,-160.949276,0.00024191,2]
[366277391,1750170656404,-460.0,0.00024191,6]
[366277393,1750170656414,-460.0,0.00024191,6]
[366277395,1750170656423,-160.949276,0.00024191,2]
[366277397,1750170656433,-460.0,0.00024191,6]
[366277399,1750170656442,-460.0,0.00024191,6]
[366277401,1750170656452,-503.35,0.00024191,6]
[366277404,1750170656463,-531.58,0.00024191,6]
[366277405,1750170656474,-500.0,0.00024191,6]
[366277407,1750170656483,-1444.82,0.00024191,6]
[366277409,1750170656493,-226.885135,0.00024191,7]
[366277412,1750170656503,-460.0,0.00024191,6]
[366277414,1750170656513,-226.885135,0.00024191,7]
[366277415,1750170656523,-634.51,0.00024191,6]
[366277418,1750170656536,-460.0,0.00024191,6]
[366277420,1750170656546,-460.0,0.00024191,6]
[366277422,1750170656556,-460.0,0.00024191,6]
[366277424,1750170656566,-460.0,0.00024191,6]
[366277426,1750170656576,-460.0,0.00024191,6]
[366277427,1750170656585,-372.53709734,0.00024191,6]
[366277429,1750170656595,-460.0,0.00024191,6]
[366277431,1750170656605,-151.0,0.00024191,7]
[366277433,1750170656615,-460.0,0.00024191,6]
[366277436,1750170656626,-301.0757923,0.00024191,6]
[366277437,1750170656636,-290.45234,0.00024191,7]
[366277440,1750170656646,-157.20581061,0.00024191,6]
[366277441,1750170656656,-460.0,0.00024191,6]
[366277443,1750170656666,-151.0,0.00024191,6]
[366277445,1750170656675,-151.0,0.00024191,7]
[366277447,1750170656685,-151.0,0.00024191,6]
[366277449,1750170656694,-290.45234,0.00024191,7]
[366277451,1750170656704,-151.0,0.00024191,6]
[366277453,1750170656714,-460.0,0.00024191,6]
[366277455,1750170656724,-460.0,0.00024191,6]
[366277457,1750170656733,-549.94351983,0.00024191,6]
[366277459,1750170656743,-460.0,0.00024191,6]
[366277461,1750170656753,-460.0,0.00024191,6]
[366277463,1750170656764,-514.60386295,0.00024191,6]
[366277465,1750170656775,-217.69833311,0.00024191,6]
[366277467,1750170656784,-151.0,0.00024191,7]
[366277469,1750170656794,-460.0,0.00024191,6]
[366277471,1750170656804,-460.0,0.00024191,6]
[366277473,1750170656817,-460.0,0.00024191,6]
[366277475,1750170656827,-433.27627569,0.00024191,6]
[366277477,1750170656836,-460.0,0.00024191,6]
[366277479,1750170656846,-460.0,0.00024191,6]
[366277481,1750170656857,-153.80410712,0.00024191,6]
[366277483,1750170656866,-151.0,0.00024191,6]
[366277485,1750170656876,-151.0,0.00024191,6]
[366277487,1750170656887,-151.0,0.00024191,6]
[366277489,1750170656898,-168.41401069,0.00024191,6]
[366277491,1750170656912,-151.0,0.00024191,6]
[366277493,1750170656922,-151.0,0.00024191,6]
[366277495,1750170656932,-1338.75,0.00024191,6]
[366277497,1750170656941,-153.12028331,0.00024191,6]
[366277499,1750170656950,-154.8265774,0.00024191,6]
[366277501,1750170656959,-460.0,0.00024191,6]
[366277503,1750170656969,-460.0,0.00024191,6]
[366277505,1750170656979,-460.0,0.00024191,6]
[366277507,1750170656989,-460.0,0.00024191,6]
[366277509,1750170656998,-239.03984928,0.00024191,6]
[366277512,1750170657007,-609.33,0.00024191,6]
[366277513,1750170657017,-460.0,0.00024191,6]
[366277515,1750170657027,-151.0,0.00024191,7]
[366277518,1750170657036,-166.65707785,0.00024191,6]
[366277519,1750170657046,-3630.13,0.00024191,6]
[366277522,1750170657056,-151.0,0.00024191,7]
[366277524,1750170657066,-151.0,0.00024191,7]
[366277526,1750170657075,-460.0,0.00024191,6]
[366277528,1750170657085,-1029.77,0.00024191,6]
[366277530,1750170657095,-422.17152681,0.00024191,6]
[366277532,1750170657104,-460.0,0.00024191,6]
[366277534,1750170657114,-460.0,0.00024191,6]
[366277536,1750170657124,-460.0,0.00024191,6]
[366277538,1750170657134,-784.51,0.00024191,6]
[366277540,1750170657144,-460.0,0.00024191,6]
[366277542,1750170657154,-460.0,0.00024191,6]
[366277544,1750170657164,-366.91472259,0.00024191,6]
[366277661,1750170658708,-172.74383123,0.00024109,6]
[366280294,1750170716299,150.0,0.00018094,2]
[366280295,1750170716752,53.57078073,0.00018955,2]
[366280296,1750170716780,96.42921927,0.00018955,2]
[366280298,1750170792666,150.0,0.00017233,2]
[366280299,1750170793012,150.0,0.00018054,2]
[366280300,1750170793563,169.11,0.00018874,2]
[366280301,1750170872542,150.0,0.00017214,2]
[366280302,1750170872956,150.0,0.00018034,2]
[366280303,1750170873372,151.2,0.00018854,2]
[366280304,1750170945655,150.0,0.00017337,2]
[366280305,1750170946098,150.0,0.00018162,2]
[366280306,1750170947072,150.0,0.00018988,2]
[366280307,1750171007966,287.82994637,0.00018988,2]
[366280308,1750171019505,154.66013963,6.9e-07,2]
[366280309,1750171021089,150.0,0.0001724,2]
[366280310,1750171021829,150.0,0.00018061,2]
[366280311,1750171022045,150.0,0.00018882,2]
[366280314,1750171094272,150.0,0.00017941,2]
[366280315,1750171094715,150.0,0.00018795,2]
[366280316,1750171112614,209.130839,0.00018724,2]
[366280317,1750171166038,150.0,0.00017175,2]
[366280318,1750171166458,150.0,0.00017993,2]
[366280319,1750171167415,150.0,0.00018811,2]
[366280320,1750171236783,150.0,0.00017179,2]
[366280321,1750171237210,150.0,0.00017997,2]
[366280322,1750171238171,150.0,0.00018815,2]
[366280323,1750171296254,540.710633,0.00013699,2]
[366280325,1750171310909,151.0,0.00018988,2]
[366280327,1750171412755,689.92922273,0.000191,2]
[366280328,1750171412783,4310.07077727,0.000191,2]
[366280329,1750171441325,150.0,0.00017295,2]
[366280332,1750171509730,150.0,0.00017201,2]
[366280333,1750171510135,150.0,0.0001802,2]
[366280334,1750171510725,150.0,0.00018839,2]
[366280396,1750171580043,89.92922273,0.00017196,2]
[366280397,1750171580071,60.07077727,0.00017196,2]
[366280398,1750171580491,150.0,0.00018014,2]
[366280399,1750171580938,150.0,0.00018833,2]
[366280400,1750171616374,4639.92922273,0.000191,2]
[366280401,1750171616402,360.07077727,0.000191,2]
[366280402,1750171648454,1333.0,0.00024291,120]
[366280403,1750171651202,150.0,0.00017174,2]
[366280404,1750171651475,150.0,0.00017992,2]
[366280405,1750171704406,510.0,0.000191,2]
[366280407,1750171824081,3829.92922273,0.000191,2]
[366280408,1750171824109,1170.07077727,0.000191,2]
[366280486,1750171832081,-150.0,0.00019658,2]
[366280488,1750171832091,-180.50637306,0.00019677,2]
[366280489,1750171832101,-1200.0,0.00019791,2]
[366280490,1750171832110,-300.0,0.00019792,2]
[366280491,1750171832120,-300.0,0.00019792,2]
[366280492,1750171832130,-130.22919258,0.00019792,2]
[366280493,1750171832146,-169.77080742,0.00019792,2]
[366280494,1750171832159,-300.0,0.00019793,2]
[366280495,1750171832169,-158.97151348,0.00019794,2]
[366280496,1750171832181,-3263.85991232,0.00019794,2]
[366280497,1750171832192,-639.9754962,0.000199,2]
[366280498,1750171832202,-503.662803,0.000201,2]
[366280499,1750171832212,-246.13078607,0.00020187,2]
[366280501,1750171832224,-294.57984693,0.00020187,2]
[366280503,1750171832233,-160.47507233,0.00020314,5]
[366280504,1750171832243,-69.89508074,0.00020471,2]
[366280511,1750171832345,-80.10491926,0.00020471,2]
[366280512,1750171832355,-2813.84,0.00020491,2]
[366280513,1750171832364,-500.0,0.00020492,2]
[366280514,1750171832374,-307.11147052,0.000209,4]
[366280515,1750171832383,-307.11147038,0.00021072,4]
[366280516,1750171832392,-307.11147038,0.00021245,4]
[366280517,1750171832402,-206.015824,0.00021264,2]
[366280518,1750171832412,-307.11147038,0.00021417,5]
[366280519,1750171832421,-153.76593032,0.0002149,2]
[366280520,1750171832430,-274.65458333,0.00021544,2]
[366280522,1750171832440,-420.0,0.00021556,2]
[366280523,1750171832449,-210.0,0.00021557,2]
[366280524,1750171832459,-229.79473488,0.00021576,2]
[366280525,1750171832468,-248.884,0.00021588,2]
[366280526,1750171832477,-500.0,0.00021588,2]
[366280527,1750171832486,-299.62760922,0.00021588,2]
[366280528,1750171832496,-500.0,0.00021588,2]
[366280529,1750171832505,-349.1237841,0.00021588,2]
[366280530,1750171832515,-500.0,0.00021588,2]
[366280531,1750171832524,-397.15819299,0.00021588,2]
[366280532,1750171832535,-450.0,0.00021588,2]
[366280533,1750171832544,-541.95044673,0.00021588,2]
[366280534,1750171832554,-400.0,0.00021588,2]
[366280535,1750171832563,-251.36095592,0.00021588,2]
[366280536,1750171832574,-24900.0,0.00021589,2]
[366280537,1750171832583,-307.11147038,0.0002159,5]
[366280538,1750171832593,-339.99985879,0.00021634,2]
[366280539,1750171832603,-160.0,0.00021644,2]
[366280540,1750171832613,-160.0,0.00021644,2]
[366280541,1750171832622,-12540.12310952,0.00021644,2]
[366280542,1750171832632,-160.0,0.00021644,2]
[366280543,1750171832643,-835.82910252,0.00021644,2]
[366280544,1750171832653,-213.39869953,0.00021644,2]
[366280545,1750171832662,-229.94211981,0.00021644,2]
[366280546,1750171832672,-1680.0,0.00021659,2]
[366280547,1750171832682,-430.0,0.00021662,2]
[366280548,1750171832691,-424.62582665,0.00021662,2]
[366280549,1750171832701,-160.0,0.00021662,2]
[366280550,1750171832710,-500.0,0.00021662,2]
[366280551,1750171832720,-307.11147038,0.00021762,5]
[366280552,1750171832730,-2813.84,0.0002185,2]
[366280553,1750171832739,-307.11147038,0.00021934,6]
[366280554,1750171832748,-500.0,0.00021936,2]
[366280555,1750171832759,-153.76593028,0.00022085,2]
[366280556,1750171832768,-307.11147038,0.00022107,6]
[366280557,1750171832778,-495.05559834,0.0002221,2]
[366280558,1750171832788,-2813.84,0.00022262,2]
[366280559,1750171832797,-307.11147038,0.00022279,6]
[366280560,1750171832807,-307.11147038,0.00022452,7]
[366280561,1750171832816,-307.11147038,0.00022624,7]
[366280562,1750171832826,-153.76593028,0.00022681,2]
[366280563,1750171832835,-500.0,0.00022684,2]
[366280564,1750171832845,-274.65458331,0.00022777,2]
[366280565,1750171832855,-307.11147038,0.00022797,7]
[366280566,1750171832865,-151.0,0.00022872,2]
[366280567,1750171832875,-2536.98672886,0.00022872,2]
[366280568,1750171832885,-207.4,0.00022872,2]
[366280569,1750171832895,-278.35022831,0.00022916,2]
[366280570,1750171832905,-307.11147038,0.00022969,8]
[366280571,1750171832915,-307.11147038,0.00023141,8]
[366280572,1750171832924,-365.2062734,0.00023205,2]
[366280573,1750171832934,-153.76593028,0.00023276,2]
[366280574,1750171832945,-500.0,0.00023279,2]
[366280576,1750171832954,-160.0,0.00023279,2]
[366280578,1750171832964,-307.11147038,0.00023314,9]
[366280580,1750171832974,-307.11147038,0.00023486,9]
[366280582,1750171832984,-356.12203835,0.00023516,2]
[366280584,1750171832994,-500.0,0.00023528,2]
[366280585,1750171833004,-307.11147038,0.00023659,9]
[366280586,1750171833015,-2813.84,0.00023709,2]
[366280587,1750171833025,-576.7015,0.00023725,3]
[366280588,1750171833035,-500.0,0.0002381,2]
[366280589,1750171833044,-500.0,0.00023827,3]
[366280590,1750171833054,-307.11147038,0.00023831,10]
[366280591,1750171833064,-551.0,0.00023831,2]
[366280592,1750171833074,-153.76593028,0.00023871,2]
[366280593,1750171833086,-500.0,0.00023998,2]
[366280594,1750171833096,-500.0,0.00023998,2]
[366280595,1750171833106,-504.57,0.00024,2]
[366280596,1750171833117,-169.0,0.00024,6]
[366280597,1750171833127,-169.0,0.00024,6]
[366280598,1750171833138,-169.0,0.00024,7]
[366280599,1750171833148,-169.0,0.00024,7]
[366280600,1750171833163,-172.0,0.00024,5]
[366280601,1750171833175,-307.11147038,0.00024003,10]
[366280602,1750171833186,-1654.58073069,0.00024008,2]
[366280603,1750171833197,-274.65458331,0.00024009,2]
[366280604,1750171833209,-1654.58073067,0.00024015,2]
[366280605,1750171833220,-5000.0,0.00024016,2]
[366280606,1750171833231,-1654.58073067,0.00024022,2]
[366280607,1750171833242,-1654.58073067,0.00024029,2]
[366280608,1750171833253,-1654.58073067,0.00024036,2]
[366280609,1750171833263,-170.71,0.00024099,3]
[366280610,1750171833273,-512.13,0.00024099,3]
[366280611,1750171833283,-2813.84,0.00024107,2]
[366280612,1750171833293,-2813.84,0.00024108,2]
[366280613,1750171833397,-2813.84,0.00024108,2]
[366280614,1750171833424,-2813.84,0.00024108,2]
[366280615,1750171833435,-2813.84,0.00024108,2]
[366280616,1750171833444,-2813.84,0.00024108,2]
[366280617,1750171833454,-2813.84,0.00024108,2]
[366280618,1750171833464,-2813.84,0.00024108,2]
[366280619,1750171833474,-2813.84,0.00024108,2]